bitfinex/quotes_ETHUSD_20220220
["timestamp","ask_amount","ask_price","bid_price","bid_amount"]
[1645351239875,0.09654921,2631.0,2630.2,0.19]
[1645351240080,0.09654921,2631.0,2630.2,11.8]
[1645351240275,0.09654921,2631.0,2630.3,3.5]
[1645351240479,0.09654921,2631.0,2630.2,0.19]
[1645351241076,0.09654921,2631.0,2630.2,11.8]
[1645351241277,0.09654921,2631.0,2630.6,1.42269602]
[1645351241675,0.09654921,2631.0,2630.6,1.09390727]
[1645351242678,0.09654921,2631.0,2630.8,0.32878875]
[1645351242878,0.09654921,2631.0,2630.6,1.09390727]
[1645351243323,0.09654921,2631.0,2630.6,12.70390727]
[1645351244127,1.0,2631.4,2630.8,11.61]
[1645351244328,1.0,2631.4,2630.8,11.93878875]
[1645351244532,1.0,2631.4,2630.8,11.61]
[1645351245125,1.0,2631.4,2631.2,0.98898699]
[1645351245326,7.32,2631.5,2631.2,0.98898699]
[1645351245726,7.32,2631.5,2631.2,12.59898699]
[1645351245925,7.32,2632.1,2631.4,0.32878875]
[1645351246131,7.32,2632.1,2631.2,12.59898699]
[1645351246426,7.32,2632.1,2631.9,0.90854447]
[1645351247282,7.32,2632.1,2632.0,0.32878875]
[1645351247488,9.17376,2632.8,2632.1,9.5]
[1645351247489,0.05496,2632.8,2632.1,9.5]
[1645351247685,0.00874876,2632.5,2632.1,9.5]
[1645351248281,0.00874876,2632.5,2632.4,0.90397059]
[1645351248482,0.25,2632.9,2632.4,0.90397059]
[1645351248682,0.08611616,2633.2,2632.4,0.90397059]
[1645351248885,0.00971259,2632.8,2632.6,0.32878875]
[1645351249185,0.00971259,2632.8,2632.4,0.90397059]
[1645351249688,0.08611616,2633.2,2632.4,0.90397059]
[1645351249886,0.08611616,2632.8,2632.4,0.90397059]
[1645351250536,0.08611616,2632.8,2632.4,0.42229934]
[1645351250930,0.3,2633.2,2632.4,0.42229934]
[1645351251129,0.00949028,2633.1,2632.4,0.42229934]
[1645351251332,0.30949028,2633.1,2632.4,0.42229934]
[1645351251528,0.00949028,2633.1,2632.4,0.42229934]
[1645351252129,1.1514,2633.3,2632.4,0.42229934]
[1645351252336,0.00237261,2633.2,2632.4,0.42229934]
[1645351253332,13.00833,2633.6,2632.4,0.42229934]
[1645351253333,1.0,2633.5,2632.4,0.42229934]
[1645351253532,0.00237265,2633.2,2632.4,0.42229934]
[1645351254279,0.00237265,2633.2,2632.1,0.95047]
[1645351254280,0.00237265,2633.2,2632.9,0.84025782]
[1645351254482,1.6,2633.5,2632.9,0.84025782]
[1645351254680,5.1,2633.5,2632.9,0.84025782]
[1645351254885,0.00218074,2633.2,2631.8,1.32635601]
[1645351255582,7.62,2633.0,2631.8,4.82635601]
[1645351255780,7.62,2633.0,2631.8,0.19895601]
[1645351255781,1.0,2632.9,2631.8,0.19895601]
[1645351255983,1.0,2632.9,2632.3,0.91215543]
[1645351256284,1.0,2632.9,2631.8,0.19895601]
[1645351256482,1.95086,2632.9,2631.8,0.19895601]
[1645351256884,0.95086,2632.9,2631.8,0.19895601]
[1645351257285,0.95958261,2632.9,2631.8,0.19895601]
[1645351257687,4.75958261,2632.9,2631.8,0.19895601]
[1645351258041,1.0,2632.8,2631.8,0.19895601]
[1645351258226,3.5,2632.7,2631.8,0.19895601]
[1645351258425,3.58208132,2632.9,2631.8,0.19895601]
[1645351258825,3.58208132,2632.9,2632.0,1.1869329]
[1645351259033,3.58208132,2632.9,2631.8,0.19895601]
[1645351259241,3.5,2632.8,2631.8,0.06075604]
[1645351259435,0.9511,2632.2,2631.8,0.06075604]
[1645351259632,0.1514,2632.1,2631.5,0.02505626]
[1645351259828,5.0,2632.0,2631.5,0.02505626]
[1645351260031,1.07231857,2631.9,2631.5,0.02505626]
[1645351260227,1.3,2631.9,2631.5,0.02505626]
[1645351260626,5.0,2631.8,2631.5,0.02505626]
[1645351260932,1.6802,2631.9,2631.3,0.00532177]
[1645351260933,0.95137,2631.5,2631.3,0.00532177]
[1645351261326,2.25137,2631.5,2631.3,0.00532177]
[1645351261978,1.2293,2631.7,2631.3,0.00532177]
[1645351262178,1.0,2631.6,2631.3,0.00532177]
[1645351262377,1.2293,2631.7,2631.3,0.00532177]
[1645351263078,4.5,2632.1,2631.3,0.00532177]
[1645351263276,1.3,2632.1,2631.3,0.00532177]
[1645351263478,4.8,2632.1,2631.3,0.00532177]
[1645351263676,4.8,2632.1,2631.2,0.97305295]
[1645351264078,4.8,2632.1,2631.2,0.05166506]
[1645351264281,0.95118,2632.0,2631.2,0.05166506]
[1645351264478,3.5,2631.9,2631.2,0.05166506]
[1645351264678,4.1,2631.9,2631.2,0.05166506]
[1645351264980,1.0,2631.8,2631.2,0.05166506]
[1645351265380,0.6,2631.9,2631.2,0.05166506]
[1645351266230,1.6,2631.9,2631.2,0.05166506]
[1645351266430,0.6,2631.9,2631.2,0.05166506]
[1645351266634,0.6,2631.9,2631.2,1.20533712]
[1645351266635,4.252213,2631.9,2631.2,1.20533712]
[1645351266934,1.0,2631.8,2631.2,0.05166506]
[1645351267938,0.6,2631.9,2631.2,0.05166506]
[1645351268133,4.1,2631.9,2631.2,0.05166506]
[1645351268332,1.0,2631.8,2631.2,0.05166506]
[1645351268734,1.6,2631.9,2631.2,0.05166506]
[1645351268932,0.6,2631.9,2631.2,0.05166506]
[1645351269134,1.6,2631.9,2631.2,0.05166506]
[1645351270176,1.6,2631.9,2631.4,0.00772644]
[1645351270579,1.752209,2631.9,2631.4,0.00772644]
[1645351270877,0.6,2631.9,2631.4,0.00772644]
[1645351271075,1.6,2631.9,2631.4,0.00772644]
[1645351271277,0.6,2631.9,2631.4,0.00772644]
[1645351271677,0.3,2631.9,2631.4,0.00772644]
[1645351271878,0.3,2632.0,2631.4,0.00772644]
[1645351272079,3.5,2632.1,2631.4,0.00772644]
[1645351273133,3.2513,2632.2,2631.4,0.00772644]
[1645351273331,1.3,2632.1,2631.4,0.00772644]
[1645351273526,1.0,2632.1,2631.4,0.00772644]
[1645351273932,3.75,2632.6,2631.5,0.1899]
[1645351273933,0.00972155,2632.3,2631.5,0.1899]
[1645351274729,0.00972155,2632.3,2632.2,1.04288846]
[1645351274932,3.5,2632.6,2632.2,1.04288846]
[1645351275129,0.00972149,2632.4,2632.2,1.04288846]
[1645351276127,7.32,2633.2,2632.2,1.04288846]
[1645351277383,7.32,2633.2,2632.6,0.89467664]
[1645351277587,1.0,2633.1,2632.6,0.89467664]
[1645351278386,7.48427112,2633.2,2631.8,2.8625]
[1645351278586,3.5,2633.1,2631.8,2.8625]
[1645351278887,7.472138,2633.2,2632.0,0.00088533]
[1645351278888,7.32242675,2633.2,2632.0,0.00088533]
[1645351279089,0.00242675,2633.2,2632.1,0.1899]
[1645351279284,0.00242675,2633.2,2632.0,0.22388533]
[1645351279484,0.00242675,2633.2,2632.1,0.1899]
[1645351279687,0.25,2633.3,2632.9,0.96740528]
[1645351279890,3.5201905,2633.7,2632.9,0.96740528]
[1645351280285,1.0,2633.6,2632.9,0.96740528]
[1645351280547,1.0,2633.6,2632.3,0.00775122]
[1645351281041,1.0,2633.6,2632.3,0.00863655]
[1645351281439,3.5201905,2633.7,2632.3,0.00863655]
[1645351281440,4.5201905,2633.7,2632.3,0.00863655]
[1645351281841,5.80353105,2633.7,2632.5,1.08276925]
[1645351282044,0.95064,2633.5,2632.3,0.00863655]
[1645351282244,4.1,2633.4,2632.3,0.00863655]
[1645351282442,0.0024232,2633.2,2632.3,0.01395831]
[1645351282842,0.0024232,2633.2,2632.3,0.01275614]
[1645351282843,3.5024232,2633.2,2632.3,0.01275614]
[1645351283042,4.1024232,2633.2,2632.3,0.01275614]
[1645351283242,1.0,2633.1,2632.3,0.01275614]
[1645351283444,1.0,2633.1,2632.3,0.0378124]
[1645351283445,3.5,2633.0,2632.3,0.0378124]
[1645351283650,3.8,2633.0,2632.3,0.0378124]
[1645351283855,5.0,2632.8,2632.3,1.24e-05]
[1645351284147,3.8,2632.7,2632.3,1.24e-05]
[1645351284379,9.4299,2632.7,2632.3,1.24e-05]
[1645351284584,9.4299,2632.7,2632.3,0.02506866]
[1645351285181,5.9299,2632.7,2632.3,0.02506866]
[1645351285380,5.9299,2632.7,2632.5,0.00774737]
[1645351285580,41.8802,2632.5,2632.0,2.692e-05]
[1645351285781,0.95119,2632.3,2632.0,2.692e-05]
[1645351285981,3.5,2632.2,2632.0,2.68e-05]
[1645351286383,1.0,2632.1,2632.0,2.68e-05]
[1645351286580,4.5,2632.1,2632.0,0.00534856]
[1645351286780,1.0,2632.1,2632.0,0.00534856]
[1645351287184,0.3,2632.1,2632.0,0.00534856]
[1645351287382,0.3,2632.2,2632.0,0.00534856]
[1645351287583,2.77169,2632.3,2632.0,0.00534856]
[1645351287781,5.0,2632.2,2632.0,0.03040482]
[1645351288236,5.3,2632.2,2632.0,0.03040482]
[1645351288436,1.0,2632.1,2632.0,0.03040482]
[1645351288633,1.3,2632.1,2632.0,0.03572658]
[1645351288838,0.3,2632.1,2632.0,0.03572658]
[1645351289039,1.3,2632.2,2632.0,0.03572658]
[1645351289239,4.33110185,2632.3,2632.0,0.03572658]
[1645351289636,3.5,2632.2,2632.0,0.03572658]
[1645351289834,1.0,2632.1,2632.0,0.06078284]
[1645351290033,1.3,2632.1,2632.0,0.06078284]
[1645351290234,5.1,2632.1,2632.0,0.06078284]
[1645351290434,4.1,2632.1,2632.0,0.06078284]
[1645351290633,5.1,2632.1,2632.0,0.06078284]
[1645351290837,5.1,2632.1,2632.0,0.0661046]
[1645351290838,3.5,2632.1,2632.0,0.0661046]
[1645351291233,2.323904,2632.3,2632.0,0.0661046]
[1645351291234,5.67169,2632.3,2632.0,0.0661046]
[1645351291880,5.67169,2632.3,2632.0,0.09116086]
[1645351292081,5.05119,2632.3,2632.0,0.09116086]
[1645351292281,1.0,2632.2,2632.0,0.09116086]
[1645351292482,1.3,2632.2,2632.0,0.09116086]
[1645351292683,1.0,2632.2,2632.0,0.09116086]
[1645351292881,0.6,2632.3,2632.0,0.11621712]
[1645351293083,2.25748509,2632.6,2632.0,0.11621712]
[1645351293284,2.56717711,2632.6,2632.0,0.30611712]
[1645351293989,2.56717711,2632.6,2632.0,0.31143888]
[1645351294184,2.55748509,2632.6,2632.0,0.12153888]
[1645351294785,6.05748509,2632.6,2632.0,0.12153888]
[1645351294988,6.05748509,2632.6,2632.0,0.12686064]
[1645351295634,0.01230093,2632.2,2631.9,0.00088533]
[1645351295930,0.95132,2632.1,2632.0,0.02505626]
[1645351296130,5.05132,2632.1,2632.0,0.02505626]
[1645351296533,6.05132,2632.1,2632.0,0.02505626]
[1645351296932,2.55132,2632.1,2632.0,0.03037802]
[1645351297529,2.703522,2632.1,2632.0,0.03037802]
[1645351297731,1.703522,2632.1,2632.0,0.03037802]
[1645351297930,2.55132,2632.1,2632.0,0.03569978]
[1645351298330,1.55132,2632.1,2632.0,0.03569978]
[1645351298530,2.55132,2632.1,2632.0,0.03569978]
[1645351298930,1.55132,2632.1,2632.0,0.03569978]
[1645351299134,2.55132,2632.1,2632.0,0.06075604]
[1645351299596,1.55132,2632.1,2632.0,0.06075604]
[1645351299796,2.55132,2632.1,2632.0,0.06075604]
[1645351299996,1.55132,2632.1,2632.0,0.0858123]
[1645351300196,2.55132,2632.1,2632.0,0.0858123]
[1645351300998,1.0,2632.1,2632.0,0.0858123]
[1645351301198,1.0,2632.1,2632.0,0.09113406]
[1645351301398,1.00653509,2632.4,2632.0,0.09113406]
[1645351301601,1.4791,2632.5,2632.1,1.04899487]
[1645351301602,0.152189,2632.3,2632.1,1.04899487]
[1645351301997,0.00969204,2632.6,2632.1,1.04899487]
[1645351302598,0.00653509,2632.8,2632.1,1.04899487]
[1645351302800,0.00653509,2632.8,2632.0,0.09645582]
[1645351303229,0.00653509,2632.8,2632.0,0.10177758]
[1645351303429,1.00653509,2632.8,2632.0,0.10177758]
[1645351303930,1.00653509,2632.8,2632.1,0.84483608]
[1645351304535,0.00653509,2632.8,2632.1,0.84483608]
[1645351304732,0.00653509,2632.8,2632.2,0.1899]
[1645351305131,0.00653509,2632.8,2632.2,0.19669912]
[1645351305532,0.00653509,2632.8,2632.5,1.06891019]
[1645351305733,7.32969189,2633.0,2632.5,1.06891019]
[1645351306134,7.32,2633.0,2632.5,1.06891019]
[1645351306887,1.0,2632.9,2632.5,1.06891019]
[1645351307088,1.0,2632.9,2632.2,0.00679912]
[1645351307285,1.00653509,2632.9,2632.2,0.00679912]
[1645351307888,0.00653509,2632.9,2632.2,0.00679912]
[1645351308093,0.00653509,2632.9,2632.3,0.1899]
[1645351308886,0.00653509,2632.9,2632.8,1.18209995]
[1645351309087,0.00969183,2633.1,2632.8,1.18209995]
[1645351309288,0.00969183,2633.1,2632.3,0.19522176]
[1645351309886,0.25,2632.9,2632.3,0.19522176]
[1645351310087,0.25,2632.9,2632.6,0.00678759]
[1645351310289,0.25,2632.9,2632.8,0.02505626]
[1645351311334,0.25,2632.9,2632.8,0.05011252]
[1645351312435,0.25,2632.9,2632.8,0.07516878]
[1645351313039,0.25,2632.9,2632.8,0.05617453]
[1645351313441,0.25,2632.9,2632.8,0.06149629]
[1645351314506,0.25,2632.9,2632.8,0.06681805]
[1645351315510,0.25,2632.9,2632.8,0.07213981]
[1645351316306,0.2,2632.9,2632.8,0.07213981]
[1645351316508,0.00242308,2633.2,2632.8,0.07213981]
[1645351316708,0.15453608,2633.2,2632.8,0.09719607]
[1645351316911,0.152113,2633.2,2632.8,0.09719607]
[1645351317107,0.00653509,2633.5,2632.8,0.09719607]
[1645351317311,0.0024232,2633.2,2632.8,0.09719607]
[1645351317708,0.91864997,2633.5,2632.8,0.10251783]
[1645351318136,7.5955,2633.4,2633.1,0.87266266]
[1645351318338,7.5955,2633.4,2633.1,0.82266266]
[1645351319637,7.59767144,2633.4,2633.1,0.82266266]
[1645351320237,7.59767144,2633.4,2633.0,0.00677606]
[1645351320439,4.5,2633.3,2633.0,0.00677606]
[1645351320639,7.59017824,2633.2,2633.0,0.00677606]
[1645351320839,1.0,2633.1,2633.0,0.00677606]
[1645351321240,7.59017824,2633.1,2633.0,0.00677606]
[1645351322284,8.59017824,2633.1,2633.0,0.00677606]
[1645351322881,7.59017824,2633.1,2633.0,0.00677606]
[1645351323283,8.59017824,2633.1,2633.0,0.00677606]
[1645351323484,7.59017824,2633.1,2633.0,0.00677606]
[1645351324086,8.89017824,2633.1,2633.0,0.00677606]
[1645351324285,8.59017824,2633.1,2632.8,0.05929389]
[1645351324485,7.59017824,2633.1,2632.8,0.05929389]
[1645351324691,1.0,2633.0,2632.8,0.05929389]
[1645351324885,7.59017824,2632.9,2632.8,0.05929389]
[1645351325289,8.59017824,2632.9,2632.8,0.05929389]
[1645351325542,6.57753,2633.3,2632.8,0.05929389]
[1645351325733,3.37972336,2633.3,2632.8,0.05929389]
[1645351325934,6.87972336,2633.3,2632.8,0.05929389]
[1645351326133,6.57972336,2633.3,2632.8,0.05929389]
[1645351326335,3.07972336,2633.3,2632.8,0.05929389]
[1645351326736,1.95073,2633.3,2632.8,0.05929389]
[1645351326938,1.95292351,2633.3,2632.8,0.05929389]
[1645351327339,0.95292351,2633.3,2632.8,0.05929389]
[1645351327536,0.00219351,2633.3,2632.8,0.05929389]
[1645351327739,1.6,2633.5,2632.8,0.05929389]
[1645351327935,5.1,2633.5,2632.8,0.05929389]
[1645351328135,0.00219351,2633.3,2632.8,0.05929389]
[1645351329040,7.57,2633.6,2632.8,0.05929389]
[1645351329296,0.00219301,2633.3,2632.8,0.05929389]
[1645351329694,0.00219301,2633.3,2633.1,0.92154118]
[1645351330302,1.0,2633.5,2633.0,0.00951767]
[1645351330501,0.00219312,2633.3,2633.0,0.00951767]
[1645351331499,0.25,2633.5,2633.1,0.84855469]
[1645351331699,0.00219308,2633.3,2633.1,0.84855469]
[1645351331907,1.20219308,2633.5,2633.1,0.84855469]
[1645351332301,1.35430608,2633.5,2633.1,0.84855469]
[1645351332500,1.20219308,2633.5,2633.1,0.84855469]
[1645351333831,0.20219308,2633.5,2633.1,0.84855469]
[1645351334339,0.20219308,2633.5,2633.1,12.45855469]
[1645351334536,0.20219308,2633.5,2633.1,0.84855469]
[1645351335135,0.20219308,2633.5,2633.1,12.75855469]
[1645351335337,0.20219308,2633.5,2633.2,3.5]
[1645351335532,0.20219308,2633.5,2633.1,0.84855469]
[1645351336637,0.00242325,2633.4,2633.1,1.44855469]
[1645351336891,0.00242325,2633.4,2633.1,1.14855469]
[1645351337490,0.20219308,2633.5,2633.1,0.84855469]
[1645351337791,0.0201905,2633.7,2633.2,11.61]
[1645351337994,0.25,2633.5,2633.4,11.61]
[1645351338191,0.0201905,2633.7,2633.4,11.61]
[1645351338388,0.25006392,2633.8,2633.6,11.61]
[1645351338590,0.25006392,2633.8,2633.5,29.5]
[1645351338591,0.4307644,2634.4,2633.9,11.61]
[1645351338790,0.25,2635.0,2633.9,12.21]
[1645351339793,0.25,2635.0,2634.7,1.09227773]
[1645351340293,0.152044,2635.2,2634.1,3.8]
[1645351340538,0.152044,2635.2,2634.1,0.3]
[1645351340736,0.152044,2635.2,2634.0,8.2617]
[1645351340933,0.5,2634.8,2634.0,8.2617]
[1645351341134,0.5,2634.8,2634.2,1.03880962]
[1645351341437,0.00242382,2634.8,2634.2,1.03880962]
[1645351341835,1.0,2634.9,2633.7,3.5]
[1645351342038,0.3,2634.9,2633.6,8.7636]
[1645351342233,2.5095,2635.0,2633.6,8.7636]
[1645351342437,3.7596,2635.0,2633.6,8.7636]
[1645351342837,0.25,2634.4,2633.6,8.7636]
[1645351343041,0.25,2634.4,2633.8,1.03755958]
[1645351343240,0.25,2634.4,2633.4,3.2716]
[1645351343435,0.25,2634.4,2633.4,3.0819]
[1645351343839,0.402075,2634.4,2633.4,3.0819]
[1645351344037,0.702075,2634.4,2633.3,3.00257046]
[1645351344291,0.55,2634.4,2633.3,3.00257046]
[1645351344494,0.25,2634.4,2633.5,0.93737569]
[1645351345596,0.25,2634.4,2633.3,2.9931]
[1645351345800,0.95039,2634.2,2633.0,0.1897]
[1645351345994,0.95039,2634.2,2632.9,3.1809]
[1645351346294,2.26849,2634.2,2633.8,0.0008863]
[1645351346894,1.90112,2634.1,2633.8,0.0008863]
[1645351347095,1.90112,2634.1,2632.8,0.05397213]
[1645351347293,2.90112,2634.1,2633.8,0.0008863]
[1645351347894,3.15112,2634.1,2633.8,0.0008863]
[1645351348341,3.15112,2634.1,2633.1,0.95405289]
[1645351348742,3.15112,2634.1,2633.8,0.0008863]
[1645351349439,3.15112,2634.1,2633.1,0.95405289]
[1645351349643,3.15112,2634.1,2633.8,0.0008863]
[1645351350239,3.53132,2634.1,2634.0,0.00945046]
[1645351350442,5.78008,2634.0,2633.8,8.63e-05]
[1645351350647,5.3802,2633.9,2632.8,0.05397213]
[1645351350843,1.9015,2633.7,2632.8,0.05397213]
[1645351351042,0.25,2633.3,2632.8,0.05397213]
[1645351351643,0.25,2633.3,2633.1,1.14815082]
[1645351351901,0.2,2633.3,2632.8,0.05397213]
[1645351352898,0.2,2633.3,2632.3,5.99151669]
[1645351353201,0.2,2633.3,2632.7,0.97341209]
[1645351354601,0.2,2633.3,2632.9,0.0008846]
[1645351355297,0.2,2633.3,2633.0,0.00911498]
[1645351355745,0.2,2633.3,2633.0,0.00999955]
[1645351356744,0.2,2633.3,2633.0,0.00911498]
[1645351356955,0.2,2633.3,2633.0,0.00999953]
[1645351357150,0.2,2633.3,2633.0,0.00039953]
[1645351357351,5.0,2633.1,2632.1,0.00532176]
[1645351357549,5.0,2632.9,2632.1,0.00532176]
[1645351357746,41.5,2632.6,2630.6,0.1899]
[1645351358049,0.95126,2632.1,2630.7,1.6161821]
[1645351358248,0.95126,2632.1,2630.5,11.3988]
[1645351358249,0.25,2631.6,2630.5,11.2089]
[1645351358444,0.25,2631.6,2630.5,10.014]
[1645351359045,0.25,2631.6,2630.5,2.7611]
[1645351359294,0.25,2631.6,2630.9,0.00088305]
[1645351359894,3.75,2631.6,2630.9,0.00088305]
[1645351360094,4.05,2631.6,2630.9,0.00088305]
[1645351360295,1.0,2631.5,2630.8,0.85649768]
[1645351360497,3.5,2631.4,2631.1,0.00088077]
[1645351360701,1.0,2631.5,2631.1,0.00088077]
[1645351360901,1.0,2631.3,2631.1,0.00088077]
[1645351361096,1.0,2631.5,2631.1,0.00088077]
[1645351361496,1.0,2631.5,2630.8,0.85649768]
[1645351361698,3.5,2631.4,2631.2,0.00088075]
[1645351361897,1.0,2631.3,2631.2,0.00088075]
[1645351362499,4.5,2631.3,2631.2,0.00088075]
[1645351362699,1.0,2631.3,2630.2,1.61642928]
[1645351362898,0.25,2630.9,2630.1,0.19]
[1645351363343,0.25,2630.9,2630.3,0.88977433]
[1645351363546,0.25,2630.9,2630.7,1.13896287]
[1645351364640,0.25,2630.9,2630.5,0.0008832]
[1645351365041,0.25,2630.9,2630.0,0.13819997]
[1645351365244,0.25,2630.9,2630.6,0.00088316]
[1645351366244,0.25,2630.9,2630.5,0.93255543]
[1645351367689,0.25,2630.9,2630.6,0.00088096]
[1645351368705,0.25,2630.9,2629.6,3.0833]
[1645351368893,0.25,2630.9,2630.6,0.00088094]
[1645351369092,0.1897,2630.8,2630.6,0.00088094]
[1645351369792,0.1897,2630.8,2630.0,1.07126579]
[1645351370190,0.1897,2630.9,2630.6,0.00088096]
[1645351370390,0.3,2630.8,2630.6,0.00088096]
[1645351370641,2.0397,2630.9,2630.6,0.00088096]
[1645351370838,1.0397,2630.9,2630.6,0.00088096]
[1645351371041,1.0397,2630.9,2630.4,1.16530811]
[1645351371243,1.0397,2630.9,2630.6,0.00088094]
[1645351371441,2.0397,2630.9,2630.6,0.00088094]
[1645351371642,1.25,2630.9,2630.6,0.00088094]
[1645351371841,0.25,2630.9,2630.6,0.00088094]
[1645351372343,0.25,2630.9,2630.4,1.16530811]
[1645351372540,0.25,2630.9,2630.6,0.00088094]
[1645351373544,0.25,2630.9,2629.7,0.13819997]
[1645351373751,0.25,2630.9,2630.6,0.00088094]
[1645351374142,1.25,2630.9,2630.6,0.00088094]
[1645351374386,0.85,2630.9,2630.6,0.00088094]
[1645351374589,0.85,2630.9,2630.1,1.02021591]
[1645351374787,1.55,2630.9,2630.1,1.02021591]
[1645351374989,1.55,2630.9,2629.7,0.13819997]
[1645351374990,1.25,2630.9,2630.6,0.00088094]
[1645351375194,0.25,2630.9,2630.6,0.00088094]
[1645351375793,0.25,2630.9,2630.5,0.95731788]
[1645351376195,0.25,2630.9,2630.6,0.00088094]
[1645351376995,0.25,2630.9,2629.8,1.6165589]
[1645351377192,0.25,2630.9,2629.8,0.6]
[1645351377394,0.25,2630.9,2630.6,0.00088094]
[1645351378248,0.25,2630.9,2630.5,0.94906761]
[1645351378446,0.25,2630.9,2630.6,0.00088094]
[1645351379449,0.25,2630.9,2629.8,0.00226672]
[1645351379651,0.25,2630.9,2630.2,1.04025245]
[1645351381149,0.25,2630.9,2630.2,1.0386669]
[1645351383800,0.25,2630.9,2629.8,0.00226672]
[1645351385195,0.25,2630.9,2629.9,0.9739736]
[1645351386543,0.25,2630.9,2629.8,0.00226672]
[1645351386943,0.1897,2630.8,2629.8,0.00226672]
[1645351387143,0.25,2630.9,2629.8,0.00226672]
[1645351387343,3.8,2630.8,2629.8,0.00226672]
[1645351387543,0.6,2630.8,2629.8,0.00226672]
[1645351387744,0.25,2630.4,2629.8,0.00226672]
[1645351390287,0.25,2630.4,2630.1,0.86712459]
[1645351390489,1.4971,2630.9,2630.6,1.14249041]
[1645351390789,0.25,2630.9,2630.6,1.14249041]
[1645351392490,0.25,2630.9,2630.6,1.07431201]
[1645351393650,0.25,2631.6,2630.6,12.98431201]
[1645351393850,3.6897,2632.0,2630.7,1.61628211]
[1645351394054,3.6897,2632.0,2630.8,11.61]
[1645351394055,0.25,2631.5,2630.8,11.61]
[1645351394257,0.25,2631.5,2630.9,13.22628211]
[1645351394454,0.25,2631.5,2631.0,0.93048536]
[1645351394655,0.25,2631.5,2631.0,2.54670354]
[1645351394848,0.25,2631.5,2631.0,0.93048536]
[1645351395247,0.25,2631.5,2631.1,1.61614045]
[1645351396259,0.25,2631.5,2631.1,1.48432035]
[1645351397095,0.25,2631.5,2631.1,1.78432035]
[1645351397292,0.25,2631.5,2631.1,0.3]
[1645351398296,0.25,2631.5,2631.1,12.8608]
[1645351398696,0.25,2631.5,2631.1,17.8608]
[1645351399295,0.25,2632.1,2631.3,16.61]
[1645351399502,3.3433,2632.6,2631.5,0.95065]
[1645351399503,1.1973,2632.6,2631.5,0.95065]
[1645351399701,0.25,2632.1,2631.5,0.95065]
[1645351399898,0.25,2632.1,2631.6,0.3]
[1645351400296,0.25,2632.1,2631.7,1.04955382]
[1645351400741,0.25,2632.1,2631.7,1.34955382]
[1645351401349,0.25,2632.9,2631.8,5.0]
[1645351401543,0.25,2632.9,2631.9,16.61]
[1645351401544,0.25,2632.5,2631.9,16.61]
[1645351401743,0.25,2632.5,2632.0,0.3]
[1645351402546,0.25,2632.5,2632.3,0.92188162]
[1645351402943,0.25,2632.5,2632.0,0.3]
[1645351403145,0.25,2632.5,2631.9,0.10169373]
[1645351403946,0.25,2632.5,2631.7,1.14637439]
[1645351403947,0.08611616,2632.4,2631.7,1.14637439]
[1645351404307,1.03711616,2632.4,2631.7,1.14637439]
[1645351405292,2.03711616,2632.4,2631.7,1.14637439]
[1645351405893,2.03711616,2632.4,2631.5,0.2715]
[1645351407094,2.03711616,2632.4,2631.6,1.10987576]
[1645351407795,0.08611616,2632.3,2631.6,1.10987576]
[1645351408036,0.25,2632.5,2631.6,1.10987576]
[1645351408438,1.25,2632.5,2631.6,1.10987576]
[1645351410338,1.33611616,2632.5,2631.7,0.00923488]
[1645351411240,0.25,2632.5,2631.7,0.00923488]
[1645351411890,0.25,2632.5,2632.3,0.8731927]
[1645351412092,0.25,2632.5,2631.7,0.00923488]
[1645351413290,0.25,2632.5,2632.1,1.00179703]
[1645351417657,0.25,2632.5,2631.9,0.00917932]
[1645351419493,0.25,2632.5,2632.0,1.15046599]
[1645351420295,0.25,2632.5,2632.2,0.00917121]
[1645351422297,0.08611616,2632.4,2632.2,0.00917121]
[1645351422497,1.03711616,2632.4,2632.2,0.00917121]
[1645351422795,0.951,2632.4,2632.2,0.00917121]
[1645351423046,0.08611616,2632.3,2632.2,0.00917121]
[1645351425548,0.08611616,2632.3,2632.2,0.00816753]
[1645351438442,0.08611616,2632.3,2631.9,0.90808299]
[1645351440240,0.08611616,2632.3,2632.2,0.00882684]
[1645351442795,0.79868531,2632.4,2632.2,0.00882684]
[1645351442796,0.19868531,2632.4,2632.2,0.00882684]
[1645351443199,0.25,2632.5,2632.2,0.00882684]
[1645351444997,0.25,2632.5,2632.0,3.8]
[1645351446039,0.25,2632.5,2632.0,8.8]
[1645351446443,0.25,2632.5,2632.1,1.61562045]
[1645351446639,0.25,2632.5,2632.2,3.5]
[1645351447340,0.25,2632.5,2632.3,0.91252474]
[1645351453843,2.1985,2633.1,2632.3,0.91252474]
[1645351454046,0.25,2632.6,2632.4,5.11536663]
[1645351454256,0.25,2633.2,2632.5,6.91536663]
[1645351454448,0.25,2633.0,2632.5,6.6]
[1645351454647,0.25,2633.2,2632.5,6.6]
[1645351454846,0.25,2633.2,2632.6,1.61520652]
[1645351455045,0.19620241,2634.0,2632.8,5.0]
[1645351455248,0.19620241,2634.0,2632.8,5.3]
[1645351455445,0.00650241,2634.0,2632.8,5.6]
[1645351456247,0.00650241,2634.0,2633.9,1.18074092]
[1645351456449,7.51620241,2634.2,2633.2,0.13819997]
[1645351456903,7.51835316,2634.2,2633.2,0.13819997]
[1645351457096,0.08611616,2634.1,2633.2,0.13819997]
[1645351457296,0.1897,2634.0,2633.2,0.13819997]
[1645351457498,0.00650241,2633.9,2633.2,0.13819997]
[1645351457695,0.09261857,2633.9,2633.2,0.13819997]
[1645351457996,0.08611616,2633.8,2633.2,0.13819997]
[1645351458204,0.1897,2633.7,2632.2,3.5]
[1645351458501,0.00650241,2633.6,2632.2,3.5]
[1645351458697,0.00650241,2633.6,2632.0,5.0]
[1645351458698,0.30650241,2633.6,2632.0,5.0]
[1645351458900,0.1897,2633.5,2632.1,3.5]
[1645351459199,0.95076,2633.2,2632.3,0.8645349]
[1645351459403,0.1897,2633.1,2632.3,0.8645349]
[1645351460299,0.27581616,2633.1,2632.3,0.8645349]